Cogmind - Beta 10.1 @@@ ROGUE MODE // 2020.10.11 @ 20:19:03 Player: Andru7428 Result: Destroyed by H-88 Terminator with KE Penetrator Performance ------------- Evolutions (9) 4500 Regions Visited (31) 6200 Robots Destroyed (253) 1265 Value Destroyed (17469) 17469 Prototype IDs (11) 220 Alien Tech Used (0) 0 Bonus (15593) 15593 TOTAL SCORE: 45247 Bonus ------- High Alert Combat Kills 1460 Follower Combat Kills 8388 Entered Garrisons 2400 Used RIF Installer 6000 Friendly Fire -2655 Cogmind --------- Core Integrity 0/1600 Matter 260/300 Energy 94/100 System Corruption 22% Temperature Cool (0) Movement Core (550) Ox10 Location -1/Access Parts ------- > --- POWER (1) -------- (None) > --- PROPULSION (2) --- (None) > --- UTILITY (20) ----- High-capacity Storage Unit Advanced Signal Interpreter Experimental Targeting Computer Relay Coupler [C] (34) Relay Coupler [Sentry] (14) Relay Coupler [Hunter] (12) > --- WEAPON (2) ------- (None) > --- INVENTORY (12) --- Light Particle Reactor Quantum Reactor Improved Remote Force Field Relay Coupler [NC] (33) Relay Coupler [NC] (37) Relay Coupler [ARC] (10) Relay Coupler [Sentry] (26) Relay Coupler [Demolisher] (19) Relay Coupler [Specialist] (26) Improved Remote Datajack Advanced Remote Datajack Advanced Remote Datajack Peak State ------------ > --- POWER ------------ Antimatter Reactor > --- PROPULSION ------- Biometal Heavy Treads > --- UTILITY ---------- High-capacity Storage Unit High-capacity Storage Unit High-capacity Storage Unit High-capacity Storage Unit Advanced Signal Interpreter Advanced Targeting Computer Improved Medium Armor Plating Relay Coupler [NC] Relay Coupler [C] Relay Coupler [C] Relay Coupler [C] Relay Coupler [C] Relay Coupler [C] Relay Coupler [C] Relay Coupler [C] Relay Coupler [ARC] Relay Coupler [ARC] Relay Coupler [Sentry] Relay Coupler [Hunter] Relay Coupler [Hunter] > --- WEAPON ----------- Railgun Improved Remote Datajack > --- INVENTORY -------- Heavy Treads Wheel Improved Remote Force Field Relay Coupler [NC] Relay Coupler [NC] Relay Coupler [NC] Relay Coupler [C] Relay Coupler [C] Relay Coupler [C] Relay Coupler [ARC] Relay Coupler [ARC] Relay Coupler [Sentry] Relay Coupler [Sentry] Relay Coupler [Sentry] Relay Coupler [Sentry] Relay Coupler [Demolisher] Relay Coupler [Specialist] Relay Coupler [Hunter] Relay Coupler [Hunter] Relay Coupler [Hunter] Relay Coupler [Hunter] Quantum Rifle Compact HERF Cannon Fusion Bomb Launcher Advanced Datajack Improved Remote Datajack Improved Remote Datajack Improved Remote Datajack Advanced Remote Datajack Advanced Remote Datajack Powered Hammer [Rating: 150] Favorites ----------- Power Heavy Ion Engine Engine Heavy Ion Engine Power Core Reinforced Fission Core Reactor Light Antimatter Reactor Propulsion Centrium Wheel Treads Improved Treads Wheel Centrium Wheel Utility High-capacity Storage Unit Device Improved Heat Sink Storage High-capacity Storage Unit Processor Advanced Signal Interpreter Hackware Relay Coupler [Sentry] Protection Hardened Light Armor Plating Weapon Remote Datajack Energy Gun Heavy EM Shotgun Energy Cannon Advanced Beam Cannon Ballistic Gun Railgun Ballistic Cannon Advanced Assault Cannon Launcher Fusion Bomb Launcher Special Weapon Remote Datajack Impact Weapon Powered Hammer Slashing Weapon Axe Build | -11 -10 -10 -9 -9 -9 -8 -8 -8 -8 -8 -7 -7 -7 -7 -6 -6 -6 -6 -5 -5 -5 -5 -4 -4 -4 -4 -3 -3 -2 -2 -1 ------- Run | Scr Mat Min Mat Min Exi Min Mat Gar Sto Gar Fac Gar Fac Gar Fac Gar Fac Gar Fac Gar Fac Gar Fac Gar Fac Gar Res Gar Res Gar Acc Slots Evolved 18 | . . . 2 . . . 2 . . . 2 . . . 2 . . . 2 . . . 2 . . . 2 . 2 . 2 Power . | . . . . . . . . . . . . . . . . . . . . . . . . . . . . . . . . Propulsion . | . . . . . . . . . . . . . . . . . . . . . . . . . . . . . . . . Utility 18 | . . . 2 . . . 2 . . . 2 . . . 2 . . . 2 . . . 2 . . . 2 . 2 . 2 Weapon . | . . . . . . . . . . . . . . . . . . . . . . . . . . . . . . . . Parts Attached 427 | 6 15 4 10 3 . 2 30 12 10 29 9 47 7 22 5 6 8 19 4 8 . 27 . 8 15 8 14 12 2 10 75 Power 31 | 1 1 1 1 . . . 1 . 1 . . 4 . 3 1 1 . . . 1 . 2 . . 1 1 2 . . 1 8 Engine 12 | 1 1 1 1 . . . 1 . 1 . . 4 . 2 . . . . . . . . . . . . . . . . . Core 6 | . . . . . . . . . . . . . . 1 1 . . . . 1 . 2 . . 1 . . . . . . Reactor 13 | . . . . . . . . . . . . . . . . 1 . . . . . . . . . 1 2 . . 1 8 Propulsion 53 | 2 4 1 1 . . . 3 3 3 3 . 4 1 . . . . 2 . . . 3 . . 2 1 2 3 1 . 14 Treads 21 | 2 4 1 1 . . . 3 3 3 1 . . . . . . . . . . . . . . . . . 1 1 . 1 Leg . | . . . . . . . . . . . . . . . . . . . . . . . . . . . . . . . . Wheel 32 | . . . . . . . . . . 2 . 4 1 . . . . 2 . . . 3 . . 2 1 2 2 . . 13 Hover . | . . . . . . . . . . . . . . . . . . . . . . . . . . . . . . . . Flight . | . . . . . . . . . . . . . . . . . . . . . . . . . . . . . . . . Utility 195 | 1 7 . 5 1 . . 15 5 . 9 8 16 6 12 4 3 7 14 4 5 . 5 . 6 10 6 9 6 1 9 21 Device 27 | . . . 2 . . . 5 2 . 5 2 5 1 . . . . 1 1 . . . . . . 1 2 . . . . Storage 24 | 1 7 . . . . . . 1 . . . . 2 . 1 . 4 2 1 1 . . . . . . 4 . . . . Processor 5 | . . . . . . . . . . 1 . . . . . . . . . . . . . . . . . . . 1 3 Hackware 92 | . . . . . . . 1 . . . 3 7 . 9 2 3 3 9 1 3 . 5 . 6 9 3 2 4 1 8 13 Protection 47 | . . . 3 1 . . 9 2 . 3 3 4 3 3 1 . . 2 1 1 . . . . 1 2 1 2 . . 5 Artifact . | . . . . . . . . . . . . . . . . . . . . . . . . . . . . . . . . Weapon 148 | 2 3 2 3 2 . 2 11 4 6 17 1 23 . 7 . 2 1 3 . 2 . 17 . 2 2 . 1 3 . . 32 Energy Gun 23 | 1 3 2 . . . . 2 . 1 8 . . . . . . . 1 . 1 . 1 . . . . . . . . 3 Energy Cannon 13 | . . . 3 1 . . 1 2 . . . . . . . . . . . . . . . . . . . . . . 6 Ballistic Gun 40 | 1 . . . . . . 5 1 2 2 1 8 . 3 . 1 . 2 . 1 . 5 . 1 2 . . 2 . . 3 Ballistic Cannon 5 | . . . . . . 2 . . 1 . . 2 . . . . . . . . . . . . . . . . . . . Launcher 15 | . . . . 1 . . 2 1 1 1 . 2 . . . . . . . . . 3 . . . . . . . . 4 Special Weapon 31 | . . . . . . . . . . . . 8 . 2 . 1 . . . . . 6 . 1 . . 1 1 . . 11 Impact Weapon 13 | . . . . . . . . . . . . 3 . 2 . . 1 . . . . 2 . . . . . . . . 5 Slashing Weapon 8 | . . . . . . . 1 . 1 6 . . . . . . . . . . . . . . . . . . . . . Piercing Weapon . | . . . . . . . . . . . . . . . . . . . . . . . . . . . . . . . . Special Melee Weapon . | . . . . . . . . . . . . . . . . . . . . . . . . . . . . . . . . Unidentified Prototypes 4 | . . . . . . . 2 . . . . . . . . . . . . . . . . . . . 1 . . . 1 Parts Lost 118 | . 3 4 . . . . 9 4 . 6 . 14 . 7 . 1 . 1 . 4 . 4 . 1 2 3 5 4 . 3 43 Power 17 | . 1 1 . . . . 1 . . . . 2 . 1 . . . . . 1 . 2 . . . 1 . . . 1 6 Propulsion 19 | . . 1 . . . . 1 1 . 1 . 2 . . . . . . . . . 1 . . 1 1 1 3 . . 6 Utility 44 | . . . . . . . 5 1 . 3 . 5 . 2 . . . 1 . 2 . . . 1 1 1 2 1 . 2 17 Weapon 38 | . 2 2 . . . . 2 2 . 2 . 5 . 4 . 1 . . . 1 . 1 . . . . 2 . . . 14 Highest Loss Streak 18 | . 1 3 . . . . 5 1 . 3 . 5 . 2 . 1 . 1 . 2 . 3 . 1 2 1 4 2 . 2 18 Average Slot Usage (%) 92 | . 99 99 98 100 100 99 95 99 100 99 96 92 97 88 89 92 91 95 96 95 92 95 89 91 93 96 91 84 78 81 81 Engine 4 | . 14 14 11 11 11 11 8 9 9 9 7 6 7 4 . . . . . . . . . . . . . . . . . Core 1 | . . . . . . . . . . . . . . 1 6 3 . . . 2 5 4 5 5 5 2 . . . . . Reactor 1 | . . . . . . . . . . . . . . . . 2 6 6 5 1 . . . . . 2 4 4 4 4 2 Treads 6 | . 28 28 22 22 22 22 18 18 18 16 . . . . . . . . . . . . . . . . . 2 4 4 . Wheel 5 | . . . . . . . . . . 1 15 15 13 7 6 6 6 11 11 11 11 10 10 10 9 10 8 3 . . 6 Device 3 | . . . 9 11 11 11 9 15 9 12 2 1 4 . . . . . . . . . . . . . . . . . . Storage 21 | . 27 28 22 22 22 22 18 22 27 27 23 23 23 23 21 26 26 21 23 17 23 23 21 21 21 21 19 19 17 17 15 Processor 1 | . . . . . . . . . . 5 . . . . . . . . . . . . . . . . . . . . 8 Hackware 25 | . . . . . . . . . . . 22 25 23 31 33 37 38 41 42 43 39 43 42 44 43 48 44 38 34 41 34 Protection 6 | . . . 11 11 11 11 22 15 18 8 8 4 9 4 8 1 . . . 3 . . . . 1 . 3 7 8 4 5 Energy Gun 2 | . 14 20 6 . . . 5 . . 11 3 . . . . . . . . . 5 1 . . . . . . . . . Energy Cannon 2 | . . . 15 22 22 12 1 8 4 . . . . . . . . . . . . . . . . . . . . . . Ballistic Gun 4 | . 14 7 . . . . 7 9 8 2 11 4 . 2 . 5 3 5 5 4 . 3 5 5 4 5 3 3 4 4 . Special Weapon 2 | . . . . . . . . . . . . 3 7 6 6 5 6 6 5 5 5 4 5 4 5 5 3 4 4 4 2 Naked Turns . | . . . . . . . . . . . . . . . . . . . . . . . . . . . . . . . . Heaviest Build 194 | 10 73 74 87 87 87 89 94 126 129 129 121 120 129 129 152 154 180 148 156 148 147 161 158 161 166 166 194 178 178 178 190 Greatest Support 75 | 40 46 43 46 46 46 46 46 45 43 40 24 24 28 28 28 28 28 32 32 32 32 32 28 28 28 22 24 70 75 75 75 Greatest Overweight (x) 46 | . 1 1 1 1 1 1 2 2 3 4 5 4 5 4 5 5 6 5 4 4 4 10 5 5 13 7 12 17 2 2 46 Average Overweight (x) 3 | . . 1 1 1 1 1 1 1 2 2 4 4 4 3 4 5 5 3 4 3 4 4 5 5 6 6 6 5 2 2 4 Largest Inventory Capacity 44 | 6 20 20 20 20 20 20 20 28 28 28 28 28 28 28 36 36 44 36 36 36 36 36 36 36 36 36 44 36 36 36 36 Average Capacity 30 | 5 16 20 20 20 20 20 20 24 28 28 28 28 28 28 29 36 36 30 36 28 36 36 36 36 36 36 36 36 36 36 35 Most Carried 39 | 5 20 20 20 20 20 20 20 28 28 28 28 28 28 28 29 36 39 34 28 33 34 36 36 36 36 36 38 36 36 36 34 Average Carried 27 | 2 13 19 19 20 20 20 19 22 27 27 27 26 27 24 27 33 35 27 26 26 33 33 35 34 33 35 35 34 35 34 26 Final Capacity 36 | 6 20 20 20 20 20 20 20 28 28 28 28 28 28 28 36 36 36 28 36 36 36 36 36 36 36 36 36 36 36 36 12 Final Carried 36 | 4 20 20 20 20 20 20 19 28 28 28 28 27 28 27 29 36 34 28 26 33 34 36 36 36 33 36 36 36 35 34 12 Class Distribution -------------------- 59% | Botlord-Mutant 20% | Bothacker-Mutant 18% | Hauler-Mutant Dominant Class ---------------- Mutant | -10/Materials Hauler-Mutant | -10/Mines Hauler-Mutant | -9/Materials Hauler-Mutant | -9/Mines Hauler-Mutant | -9/Exiles Hauler-Mutant | -8/Mines Hauler-Mutant | -8/Materials Bothacker-Mutant | -8/Garrison Bothacker-Mutant | -8/Storage Bothacker-Mutant | -8/Garrison Bothacker-Mutant | -7/Factory Bothacker-Mutant | -7/Garrison Bothacker-Mutant | -7/Factory Botlord-Mutant | -7/Garrison Botlord-Mutant | -6/Factory Botlord-Mutant | -6/Garrison Botlord-Mutant | -6/Factory Botlord-Mutant | -6/Garrison Botlord-Mutant | -5/Factory Botlord-Mutant | -5/Garrison Botlord-Mutant | -5/Factory Botlord-Mutant | -5/Garrison Botlord-Mutant | -4/Factory Botlord-Mutant | -4/Garrison Botlord-Mutant | -4/Factory Botlord-Mutant | -4/Garrison Botlord-Mutant | -3/Research Botlord-Mutant | -3/Garrison Botlord-Mutant | -2/Research Botlord-Mutant | -2/Garrison Botlord-Mutant | -1/Access Resources | -11 -10 -10 -9 -9 -9 -8 -8 -8 -8 -8 -7 -7 -7 -7 -6 -6 -6 -6 -5 -5 -5 -5 -4 -4 -4 -4 -3 -3 -2 -2 -1 ----------- Run | Scr Mat Min Mat Min Exi Min Mat Gar Sto Gar Fac Gar Fac Gar Fac Gar Fac Gar Fac Gar Fac Gar Fac Gar Fac Gar Res Gar Res Gar Acc Matter Collected 11364 | 213 221 61 98 40 . 74 805 289 3 520 215 1452 229 676 . 355 138 587 105 275 25 945 . 281 390 280 141 456 72 388 2030 Remotely . | . . . . . . . . . . . . . . . . . . . . . . . . . . . . . . . . Salvage Created 10995 | . 390 97 982 39 . 155 1457 784 13 1371 155 1492 211 347 . 274 . 688 . 86 . 1145 . 74 153 113 . 302 39 37 591 Parts 470 | . 26 1 47 2 . 6 65 40 3 66 8 47 13 13 . 10 . 37 . 3 . 28 . 1 4 5 . 10 . 4 31 Haulers Intercepted 6 | . 2 . 2 . . . 2 . . . . . . . . . . . . . . . . . . . . . . . . Recyclers Shooed 1 | . . . . . . . . . . . . . . . . . . . . . . . . . . . . . . . 1 Parts Field Recycled . | . . . . . . . . . . . . . . . . . . . . . . . . . . . . . . . . Retrieved Matter . | . . . . . . . . . . . . . . . . . . . . . . . . . . . . . . . . Parts Self-Destructed . | . . . . . . . . . . . . . . . . . . . . . . . . . . . . . . . . Prevented . | . . . . . . . . . . . . . . . . . . . . . . . . . . . . . . . . Kills | -11 -10 -10 -9 -9 -9 -8 -8 -8 -8 -8 -7 -7 -7 -7 -6 -6 -6 -6 -5 -5 -5 -5 -4 -4 -4 -4 -3 -3 -2 -2 -1 ------- Run | Scr Mat Min Mat Min Exi Min Mat Gar Sto Gar Fac Gar Fac Gar Fac Gar Fac Gar Fac Gar Fac Gar Fac Gar Fac Gar Res Gar Res Gar Acc Combat Hostiles Destroyed 212 | . 13 4 15 1 . 4 34 18 . 33 2 29 3 7 . 5 . 9 . 2 . 9 . 1 2 1 . 5 1 . 14 Guns 121 | . 13 4 . . . . 19 5 . 29 2 8 . 7 . 5 . 9 . 2 . 7 . 1 2 1 . 5 1 . 1 Cannons 56 | . . . 14 . . 2 12 9 . . . 15 3 . . . . . . . . . . . . . . . . . 1 AOE 32 | . . . 1 1 . 2 3 4 . 1 . 6 . . . . . . . . . 2 . . . . . . . . 12 Classes Destroyed 17 | . 3 1 5 1 . . 2 . 1 1 1 . . . . . . . . . . 1 . . . . . . . . 1 Worker 7 | . . . . 2 . . 1 . . . . . . . . . . . . . . . . . 1 . . . . . 3 Builder 4 | . . . 1 . . . 1 . . . . . . . . . . . . . . . . . . . . . . . 2 Tunneler 1 | . . . . . . . . . . . . . . . . . . . . . . . . . . . . . . . 1 Hauler 6 | . 2 . 2 . . . 2 . . . . . . . . . . . . . . . . . . . . . . . . Recycler 6 | . . . 3 . . . . . . . 1 . 1 . . . . . . . . . . . . . . . . . 1 Operator 1 | . . . . . . . . . 1 . . . . . . . . . . . . . . . . . . . . . . Watcher 2 | . . . 1 . . . 1 . . . . . . . . . . . . . . . . . . . . . . . . Swarmer 63 | . 9 . 4 1 . . 3 4 . 17 . 5 . 1 . 1 . 2 . 1 . 6 . . . 2 . 5 1 1 . Grunt 100 | . 4 1 6 . . 4 19 10 . 11 . 21 1 7 . 3 . 6 . . . 3 . . 1 1 . 2 . . . Brawler 8 | . . . . . . . 3 . . . . . . . . 1 . 1 . . . 1 . 1 . . . . . . 1 Duelist 4 | . . . 1 . . . 2 . . . . 1 . . . . . . . . . . . . . . . . . . . Sentry 23 | . . . 4 . . . 5 3 . 4 . 1 1 . . . . 3 . 1 . . . . . . . . . . 1 Specialist 1 | . . . . . . . . . . 1 . . . . . . . . . . . . . . . . . . . . . Hunter 4 | . . . . . . . 2 1 . . . . . . . . . . . . . 1 . . . . . . . . . Programmer 19 | . . . . . . . . . . . 2 1 1 . . . . . . . . 2 . . 1 . . . . . 12 Behemoth 1 | . . . . . . . . . . . . . . . . . . . . . . 1 . . . . . . . . . Assembled 3 | . . 3 . . . . . . . . . . . . . . . . . . . . . . . . . . . . . Best Kill Streak 7 | . 3 1 5 3 . 2 5 4 1 7 1 4 2 2 . 2 . 4 . 1 . 2 . 1 1 1 . 4 1 . 6 Combat Bots Only 7 | . 3 1 5 1 . 2 5 4 . 7 1 4 1 2 . 2 . 4 . 1 . 2 . 1 1 1 . 4 1 . 4 Max Kills in Single Turn 3 | . 2 1 2 3 . 2 3 2 1 2 1 3 1 1 . 1 . 1 . 1 . 2 . 1 1 1 . 1 1 1 2 Gunslinging 1 | . 1 . . . . . . . . 1 . . . . . . . . . . . . . . . . . . . . . Exploded 3 | . . . 1 1 . 2 3 2 . 1 . 3 . . . . . . . . . 2 . . . . . . . . 2 Melee . | . . . . . . . . . . . . . . . . . . . . . . . . . . . . . . . . Uniques/NPCs Destroyed . | . . . . . . . . . . . . . . . . . . . . . . . . . . . . . . . . Combat | -11 -10 -10 -9 -9 -9 -8 -8 -8 -8 -8 -7 -7 -7 -7 -6 -6 -6 -6 -5 -5 -5 -5 -4 -4 -4 -4 -3 -3 -2 -2 -1 -------- Run | Scr Mat Min Mat Min Exi Min Mat Gar Sto Gar Fac Gar Fac Gar Fac Gar Fac Gar Fac Gar Fac Gar Fac Gar Fac Gar Res Gar Res Gar Acc Damage Taken 23978 | . 389 310 429 15 . 173 2286 844 512 1557 508 2238 353 772 . 378 56 341 18 595 38 1557 . 353 510 271 619 635 60 600 7561 Core 3821 | . 36 97 66 . . 26 179 77 28 231 30 386 14 129 . 34 38 42 . 24 . 312 . 35 106 44 74 108 . 100 1605 Absorbed by Shields 251 | . . . . . . . . . . . . . . . . . . 9 . 11 . . . . 167 . . 48 . 16 . Core Remaining (%) 66 | 100 . 46 . . . 77 . . . 6 . . . 20 . . . 86 . . . 66 . . . 83 . 86 . 93 . Volleys Fired 1408 | . 44 26 47 1 . 9 122 54 10 72 20 149 18 80 . 61 7 91 16 61 4 143 . 37 49 43 13 53 9 31 138 Largest 2 | . 2 2 2 1 . 2 2 2 2 2 2 2 1 1 . 1 1 1 1 1 1 2 . 2 1 1 1 1 1 1 2 Hottest 150 | . 85 85 124 30 . 112 112 93 93 100 56 76 48 48 . 30 30 30 30 94 94 94 . 70 35 35 35 40 40 40 150 Shots Fired 1829 | . 84 39 91 1 . 18 242 90 11 134 40 186 18 81 . 61 7 91 16 61 4 169 . 41 49 43 13 54 9 31 145 Gun 1056 | . 84 39 14 . . . 155 42 1 131 40 78 . 39 . 48 1 53 6 33 1 140 . 24 14 30 1 34 3 13 32 Cannon 358 | . . . 77 . . 18 85 46 9 2 . 79 17 11 . . . . . . . . . . . . . . . . 14 Launcher 36 | . . . . 1 . . 2 2 1 1 . 3 . . . . . . . . . 6 . . . . . . . . 20 Special 379 | . . . . . . . . . . . . 26 1 31 . 13 6 38 10 28 3 23 . 17 35 13 12 20 6 18 79 Kinetic 920 | . 44 16 . . . 9 147 42 8 24 40 157 17 50 . 48 1 53 6 19 . 97 . 24 14 30 1 34 3 13 23 Thermal 300 | . 39 . 30 . . 9 93 46 2 . . . . . . . . . . 14 1 43 . . . . . . . . 23 Explosive 36 | . . . . 1 . . 2 2 1 1 . 3 . . . . . . . . . 6 . . . . . . . . 20 Electromagnetic 194 | . 1 23 61 . . . . . . 109 . . . . . . . . . . . . . . . . . . . . . Robot Hit Streak 25 | . 20 4 12 . . 5 21 22 1 17 7 13 3 10 . 20 6 14 13 9 2 25 . 10 13 7 5 6 9 4 10 Robot Miss Streak 7 | . 2 4 5 . . 4 6 3 1 3 2 5 2 7 . 2 1 2 1 5 2 3 . 2 3 3 2 4 1 1 5 Penetration Max 1 | . . . . . . . . . . 1 . 1 . . . 1 . 1 . . . 1 . . . . . 1 . . . Secondary Targets 15 | . 2 . . . . . 5 1 . 6 . 1 . . . . . . . . . . . . . . . . . . . Max Gunslinging Chain 1 | . 1 . . . . . 1 1 . 1 . 1 . . . . . . . . . . . . . . . . . . . Shots Hit Robots 1234 | . 58 24 57 . . 16 185 61 1 112 26 149 10 49 . 34 6 55 15 24 2 124 . 21 39 22 8 28 8 12 88 Core Hits 530 | . 25 11 24 3 . 13 98 32 1 64 5 85 5 29 . 13 . 17 . 2 . 34 . 3 5 5 . 10 2 1 43 Critical Hits 35 | . . 1 6 . . 1 4 6 . 7 . 2 . . . 4 . . . . . 2 . 1 . 1 . . . . . Critical Kills 12 | . . . 3 . . . 2 1 . 2 . 2 . . . 1 . . . . . . . 1 . . . . . . . Critical Parts Destroyed 20 | . . 1 3 . . 1 2 5 . 3 . . . . . 3 . . . . . 1 . . . 1 . . . . . Melee Attacks 100 | . . . . . . . 1 . 1 24 . 27 . 3 . . 1 . . . . 25 . . . . . . . . 18 Impact 74 | . . . . . . . . . . . . 27 . 3 . . 1 . . . . 25 . . . . . . . . 18 Slashing 26 | . . . . . . . 1 . 1 24 . . . . . . . . . . . . . . . . . . . . . Piercing . | . . . . . . . . . . . . . . . . . . . . . . . . . . . . . . . . Sneak Attacks 1 | . . . . . . . . . . . . . . . . . . . . . . . . . . . . . . . 1 Combat Hostiles . | . . . . . . . . . . . . . . . . . . . . . . . . . . . . . . . . Follow-up Attacks . | . . . . . . . . . . . . . . . . . . . . . . . . . . . . . . . . Damage Inflicted 26952 | . 619 279 1347 144 . 392 3377 1421 27 2482 562 4675 331 520 . 667 23 764 72 312 . 4235 . 220 305 454 . 416 58 80 3170 Guns 13591 | . 619 279 54 . . . 1880 482 18 2012 562 1292 . 520 . 667 23 764 72 312 . 1987 . 220 305 454 . 416 58 80 515 Cannons 5115 | . . . 1175 . . 234 1341 673 . 57 . 1151 329 . . . . . . . . . . . . . . . . . 155 Explosions 4911 | . . . 116 144 . 130 123 266 . 413 . 605 . . . . . . . . . 723 . . . . . . . . 2391 Melee 3261 | . . . . . . . . . . . . 1627 . . . . . . . . . 1525 . . . . . . . . 109 Ramming 74 | . . . 2 . . 28 33 . 9 . . . 2 . . . . . . . . . . . . . . . . . . Kinetic 12895 | . 291 77 . . . 173 2250 482 18 321 562 2443 329 520 . 667 23 764 72 256 . 1733 . 220 305 454 . 416 58 80 381 Thermal 3524 | . 328 . 533 . . 191 971 673 . 229 . . . . . . . . . 56 . 254 . . . . . . . . 289 Explosive 4436 | . . . . 144 . . 123 266 . 184 . 605 . . . . . . . . . 723 . . . . . . . . 2391 Electromagnetic 2762 | . . 202 812 . . . . . . 1748 . . . . . . . . . . . . . . . . . . . . . Impact 3261 | . . . . . . . . . . . . 1627 . . . . . . . . . 1525 . . . . . . . . 109 Slashing . | . . . . . . . . . . . . . . . . . . . . . . . . . . . . . . . . Piercing . | . . . . . . . . . . . . . . . . . . . . . . . . . . . . . . . . Highest Corruption 22 | . . . . . . . . . . . 3 3 6 6 . . . . . . . 1 . 2 2 2 3 7 . . 22 Average Corruption 6 | . . . . . . . . . . . 2 3 3 6 . . . . . . . 1 . 1 2 2 2 6 . . 15 Corruption Purged . | . . . . . . . . . . . . . . . . . . . . . . . . . . . . . . . . Effects 472 | . . . . . . . . . . . 2 45 12 53 . . . . . . . 6 . 13 20 20 5 63 . . 233 Message Errors 114 | . . . . . . . . . . . 1 12 2 19 . . . . . . . 2 . 5 8 9 2 18 . . 36 Matter Fused 94 | . . . . . . . . . . . . 10 3 12 . . . . . . . . . . . . 2 18 . . 49 Heat Flow Errors 62 | . . . . . . . . . . . . 3 1 7 . . . . . . . . . 5 3 4 . 10 . . 29 Energy Discharges 62 | . . . . . . . . . . . 1 6 4 5 . . . . . . . 2 . 2 4 2 1 8 . . 27 Parts Rejected 4 | . . . . . . . . . . . . . . 1 . . . . . . . . . . . . . . . . 3 Data Loss (minor) 48 | . . . . . . . . . . . . 7 2 6 . . . . . . . . . 1 3 4 . 4 . . 21 Data Loss (major) 8 | . . . . . . . . . . . . . . . . . . . . . . . . . . . . 2 . . 6 Misfires 8 | . . . . . . . . . . . . . . 2 . . . . . . . . . . . . . 1 . . 5 Alerts 4 | . . . . . . . . . . . . . . . . . . . . . . . . . . . . . . . 4 Misdirections 35 | . . . . . . . . . . . . . . . . . . . . . . . . . . . . . . . 35 Targeting Errors 29 | . . . . . . . . . . . . 5 . . . . . . . . . 2 . . 2 1 . 2 . . 17 Weapon Failures 4 | . . . . . . . . . . . . 2 . 1 . . . . . . . . . . . . . . . . 1 Overload Shots . | . . . . . . . . . . . . . . . . . . . . . . . . . . . . . . . . Overflow Damage 573 | . . . 46 . . 27 11 . . 25 . 177 3 . . . . . . . . 123 . . . . . . . . 161 Projectiles 117 | . . . 46 . . . 11 . . . . 17 3 . . . . . . . . . . . . . . . . . 40 Explosions 195 | . . . . . . 27 . . . 25 . 46 . . . . . . . . . 18 . . . . . . . . 79 Melee 261 | . . . . . . . . . . . . 114 . . . . . . . . . 105 . . . . . . . . 42 Knockbacks 58 | . . . . . . 3 19 . . 1 . 22 4 . . . . . . . . 7 . . . . . . . . 2 Impact 12 | . . . . . . . . . . . . 4 . . . . . . . . . 6 . . . . . . . . 2 Kinetic 39 | . . . . . . 3 15 . . 1 . 17 3 . . . . . . . . . . . . . . . . . . Secondary 7 | . . . . . . . 4 . . . . 1 1 . . . . . . . . 1 . . . . . . . . . Self-Inflicted Damage 747 | . . . 15 . . . . 96 . 107 . 106 1 . . . . . . . . 4 . . . . . . . . 418 Shots 19 | . . . 1 . . . . 2 . 4 . 3 . . . . . . . . . 1 . . . . . . . . 8 Rammed 10 | . . . 1 . . 3 4 . 1 . . . 1 . . . . . . . . . . . . . . . . . . Targets Rammed 11 | . . . 1 . . 3 5 . 1 . . . 1 . . . . . . . . . . . . . . . . . . Kicked . | . . . . . . . . . . . . . . . . . . . . . . . . . . . . . . . . Crushed 1 | . . . . . . . 1 . . . . . . . . . . . . . . . . . . . . . . . . Highest Temperature 277 | . 166 72 210 . . 27 277 50 16 54 . 140 221 261 . 29 2 26 . 60 37 177 . 197 186 257 8 264 18 18 256 Average Temperature 53 | . 48 29 49 . . 12 92 9 12 13 . 33 31 65 . 6 2 3 . 18 24 48 . 86 38 97 6 101 9 5 75 Received Heat Transfer 4597 | . 114 27 78 . . 99 918 378 171 495 12 966 24 321 . 99 27 87 9 114 18 237 . 54 37 48 48 38 9 67 102 Effects 2 | . . . . . . . . . . . . . . . . . . . . . . . . . . . . 1 . . 1 Energy Bleed 1 | . . . . . . . . . . . . . . . . . . . . . . . . . . . . . . . 1 Interference 1 | . . . . . . . . . . . . . . . . . . . . . . . . . . . . 1 . . . Siege Activations . | . . . . . . . . . . . . . . . . . . . . . . . . . . . . . . . . Robots Corrupted 6 | . . . 1 . . . . . . 5 . . . . . . . . . . . . . . . . . . . . . Combat Hostiles 3 | . . . . . . . . . . 3 . . . . . . . . . . . . . . . . . . . . . Parts Fried 25 | . . . 5 . . . . . . 12 . 1 . . . . . 1 . . . 3 . . . . . . . . 3 Impact Corruptions 13 | . . . . . . . . . . . . 7 . . . . . . . . . 4 . . . . . . . . 2 Robots Melted . | . . . . . . . . . . . . . . . . . . . . . . . . . . . . . . . . Combat Hostiles . | . . . . . . . . . . . . . . . . . . . . . . . . . . . . . . . . Parts Melted 17 | . 1 . 1 . . . 1 1 . . . 3 . 1 . . . . . 2 . 1 . . 5 . . . . . 1 Heat Transferred 5828 | . 888 . 803 . . 261 1776 1184 . 250 . . . . . . . . . 74 . 333 . . . . . . . . 259 Parts Sabotaged . | . . . . . . . . . . . . . . . . . . . . . . . . . . . . . . . . Parts Stolen . | . . . . . . . . . . . . . . . . . . . . . . . . . . . . . . . . Parts Stripped . | . . . . . . . . . . . . . . . . . . . . . . . . . . . . . . . . Power Chain Reactions 7 | . . . 1 . . . . . . 6 . . . . . . . . . . . . . . . . . . . . . Missiles Intercepted . | . . . . . . . . . . . . . . . . . . . . . . . . . . . . . . . . Alert | -11 -10 -10 -9 -9 -9 -8 -8 -8 -8 -8 -7 -7 -7 -7 -6 -6 -6 -6 -5 -5 -5 -5 -4 -4 -4 -4 -3 -3 -2 -2 -1 ------- Run | Scr Mat Min Mat Min Exi Min Mat Gar Sto Gar Fac Gar Fac Gar Fac Gar Fac Gar Fac Gar Fac Gar Fac Gar Fac Gar Res Gar Res Gar Acc Peak Influence 1300 | . 187 20 279 201 . 104 257 793 461 1200 642 973 762 873 469 895 508 1014 703 902 513 786 424 712 1160 1300 876 843 569 966 633 Initial 812 | . . . 5 87 . . 8 157 386 299 630 201 510 457 457 314 469 224 523 401 473 348 412 296 373 812 731 471 474 426 579 Average 490 | . 31 3 110 76 . 33 125 533 427 802 477 637 609 641 465 609 420 579 611 664 478 542 423 511 434 1092 717 683 500 736 176 Maximum Alert Level 4 | . . . 1 1 . . 1 3 2 4 2 3 3 3 2 3 2 3 3 3 2 3 2 3 4 4 3 3 2 3 2 Low Security (%) 23 | 100 100 100 70 64 . 100 68 . . . . . . . . . . 2 . . . . . . 14 . . . . . 71 Level 1 15 | . . . 29 35 . . 31 11 33 16 35 22 . . . 22 33 26 . 11 . 10 . 30 39 . . . . . 17 Level 2 33 | . . . . . . . . 73 66 27 64 35 97 71 100 41 66 35 89 30 100 72 100 56 32 . 39 33 100 30 10 Level 3 22 | . . . . . . . . 13 . 29 . 42 2 28 . 36 . 34 10 58 . 16 . 13 7 35 60 66 . 69 . Level 4 5 | . . . . . . . . . . 27 . . . . . . . . . . . . . . 6 64 . . . . . Level 5 . | . . . . . . . . . . . . . . . . . . . . . . . . . . . . . . . . High Security . | . . . . . . . . . . . . . . . . . . . . . . . . . . . . . . . . Max Security . | . . . . . . . . . . . . . . . . . . . . . . . . . . . . . . . . Squads Dispatched 51 | . 1 . 2 . . . 7 . . . 3 . 3 . 1 . 1 . 1 . . . . . 9 . 2 . 1 . 20 Investigation 7 | . 1 . 1 . . . 2 . . . . . . . . . . . 1 . . . . . 1 . . . . . 1 Extermination 15 | . . . . . . . . . . . 2 . . . 1 . . . . . . . . . 3 . 1 . . . 8 Reinforcement 17 | . . . 1 . . . 2 . . . 1 . 1 . . . 1 . . . . . . . 3 . . . . . 8 Assault 6 | . . . . . . . . . . . . . 1 . . . . . . . . . . . 2 . 1 . . . 2 Garrison 6 | . . . . . . . 3 . . . . . 1 . . . . . . . . . . . . . . . 1 . 1 Intercept . | . . . . . . . . . . . . . . . . . . . . . . . . . . . . . . . . Construction Impeded 2 | . . . . . . . . . . . . . 1 . . . . . . . . . . . 1 . . . . . . Haulers Reinforced 3 | . . . . . . . . . . . . . . . . . 1 . . . . . . . . . . . . . 2 Stealth | -11 -10 -10 -9 -9 -9 -8 -8 -8 -8 -8 -7 -7 -7 -7 -6 -6 -6 -6 -5 -5 -5 -5 -4 -4 -4 -4 -3 -3 -2 -2 -1 --------- Run | Scr Mat Min Mat Min Exi Min Mat Gar Sto Gar Fac Gar Fac Gar Fac Gar Fac Gar Fac Gar Fac Gar Fac Gar Fac Gar Res Gar Res Gar Acc Distress Signals 23 | . 1 2 3 . . . 6 . . . . . 4 . 1 . . . . . . . . . 2 . 1 . 1 . 2 Communications Jammed 228 | . . . . . . . . . . . . . . . 2 . 1 . 1 . . . . . 21 . 19 . 4 . 180 Distress Signals 220 | . . . . . . . . . . . . . . . . . . . . . . . . . 21 . 19 . 4 . 176 Times Spotted 689 | . 25 6 25 4 . 7 64 18 2 38 5 46 21 27 1 18 4 38 4 28 3 27 . 20 43 21 11 29 5 23 126 Peak Tracking Total 12 | . 4 2 6 4 . 3 8 5 2 6 1 5 6 4 3 7 1 4 3 4 2 5 . 4 5 3 5 6 3 7 12 Tactical Retreats 31 | . 2 2 1 . . 1 4 1 . 4 . 4 . 3 . . . . . . . . . . 1 . . 1 . . 7 Traps | -11 -10 -10 -9 -9 -9 -8 -8 -8 -8 -8 -7 -7 -7 -7 -6 -6 -6 -6 -5 -5 -5 -5 -4 -4 -4 -4 -3 -3 -2 -2 -1 ------- Run | Scr Mat Min Mat Min Exi Min Mat Gar Sto Gar Fac Gar Fac Gar Fac Gar Fac Gar Fac Gar Fac Gar Fac Gar Fac Gar Res Gar Res Gar Acc Traps Triggered 131 | . 1 . 1 . . . 1 10 . 9 2 10 1 8 . 8 1 5 . 14 . 8 . 8 3 8 1 8 . 10 14 Indirectly . | . . . . . . . . . . . . . . . . . . . . . . . . . . . . . . . . Trap Hack Attempts . | . . . . . . . . . . . . . . . . . . . . . . . . . . . . . . . . Triggered . | . . . . . . . . . . . . . . . . . . . . . . . . . . . . . . . . Disarmed 3 | . . . . . . . 3 . . . . . . . . . . . . . . . . . . . . . . . . Reprogrammed . | . . . . . . . . . . . . . . . . . . . . . . . . . . . . . . . . Reused . | . . . . . . . . . . . . . . . . . . . . . . . . . . . . . . . . Traps Extracted . | . . . . . . . . . . . . . . . . . . . . . . . . . . . . . . . . Installed . | . . . . . . . . . . . . . . . . . . . . . . . . . . . . . . . . Triggered 1 | . . . 1 . . . . . . . . . . . . . . . . . . . . . . . . . . . . Machines | -11 -10 -10 -9 -9 -9 -8 -8 -8 -8 -8 -7 -7 -7 -7 -6 -6 -6 -6 -5 -5 -5 -5 -4 -4 -4 -4 -3 -3 -2 -2 -1 ---------- Run | Scr Mat Min Mat Min Exi Min Mat Gar Sto Gar Fac Gar Fac Gar Fac Gar Fac Gar Fac Gar Fac Gar Fac Gar Fac Gar Res Gar Res Gar Acc Machines Disabled 74 | . . . 1 . . 1 1 3 2 3 . 5 1 4 . 4 . 6 2 4 . 5 . 3 11 4 . 4 . 4 6 Max in Single Turn 1 | . . . 1 . . 1 1 1 1 1 . 1 1 1 . 1 . 1 . 1 . 1 . 1 . 1 . 1 . 1 1 Garrison Access 5 | . . . . . . . . . . . . . . . . . . . . . . . . . 1 . . . . . 4 Garrison Relay 40 | . . . . . . . . 3 . 3 . 4 . 4 . 4 . 3 . 3 . 3 . 3 . 4 . 3 . 3 . Phase Generator 1 | . . . . . . . . . . . . . . . . . . 1 . . . . . . . . . . . . . Machines Sabotaged . | . . . . . . . . . . . . . . . . . . . . . . . . . . . . . . . . Garrisons Compromised . | . . . . . . . . . . . . . . . . . . . . . . . . . . . . . . . . Overloaded Fab Kills . | . . . . . . . . . . . . . . . . . . . . . . . . . . . . . . . . Fab Network Shutdowns 1 | . . . . . . . . . . . . . . . . . . . . . . . . . 1 . . . . . . Hacking | -11 -10 -10 -9 -9 -9 -8 -8 -8 -8 -8 -7 -7 -7 -7 -6 -6 -6 -6 -5 -5 -5 -5 -4 -4 -4 -4 -3 -3 -2 -2 -1 --------- Run | Scr Mat Min Mat Min Exi Min Mat Gar Sto Gar Fac Gar Fac Gar Fac Gar Fac Gar Fac Gar Fac Gar Fac Gar Fac Gar Res Gar Res Gar Acc Machines Accessed 63 | . 7 . 2 1 4 . 9 . 3 . 5 . 2 . 3 . 4 . 2 . 2 . 2 . 7 . 1 . 1 . 8 Terminals 34 | . 7 . 2 1 . . 8 . 2 . 3 . . . 1 . 1 . 1 . . . . . 4 . . . . . 4 Fabricators 6 | . . . . . . . . . . . 1 . 1 . 1 . 1 . . . 1 . . . 1 . . . . . . Repair Stations 1 | . . . . . . . . . . . . . . . . . . . . . . . . . 1 . . . . . . Recycling Units . | . . . . . . . . . . . . . . . . . . . . . . . . . . . . . . . . Scanalyzers 2 | . . . . . . . . . . . . . . . . . 1 . . . . . 1 . . . . . . . . Garrison Access 16 | . . . . . . . 1 . 1 . 1 . 1 . 1 . 1 . 1 . 1 . 1 . 1 . 1 . 1 . 4 Total Hacks 138 | . 23 . 6 1 4 . 27 . 3 . 12 . 4 . 8 . 10 . 5 . 2 . 4 . 15 . 1 . 1 . 12 Successful 77 | . 12 . 3 . 4 . 15 . 2 . 5 . 4 . 4 . 7 . 2 . 1 . 3 . 7 . 1 . 1 . 6 Failed 61 | . 11 . 3 1 . . 12 . 1 . 7 . . . 4 . 3 . 3 . 1 . 1 . 8 . . . . . 6 Catastrophic 15 | . 3 . 1 1 . . 2 . 1 . 1 . . . . . 1 . 2 . . . . . 1 . . . . . 2 Database Lockouts . | . . . . . . . . . . . . . . . . . . . . . . . . . . . . . . . . Manual 59 | . 18 . 6 1 . . 19 . 1 . 7 . . . 3 . . . 3 . . . . . 1 . . . . . . Terminals 93 | . 23 . 6 1 . . 26 . 2 . 9 . . . 4 . 2 . 4 . . . . . 8 . . . . . 8 Fabricators 14 | . . . . . . . . . . . 2 . 3 . 3 . 2 . . . 1 . . . 3 . . . . . . Repair Stations 3 | . . . . . . . . . . . . . . . . . . . . . . . . . 3 . . . . . . Recycling Units . | . . . . . . . . . . . . . . . . . . . . . . . . . . . . . . . . Scanalyzers 8 | . . . . . . . . . . . . . . . . . 5 . . . . . 3 . . . . . . . . Garrison Access 16 | . . . . . . . 1 . 1 . 1 . 1 . 1 . 1 . 1 . 1 . 1 . 1 . 1 . 1 . 4 Terminal Hacks 33 | . 9 . 2 . 4 . 7 . 1 . 2 . . . 1 . 1 . 1 . . . . . 3 . . . . . 2 Record 6 | . . . . . 4 . . . . . . . . . . . . . . . . . . . 2 . . . . . . Part Schematic 3 | . 2 . . . . . . . . . . . . . 1 . . . . . . . . . . . . . . . . Robot Analysis 3 | . 2 . 1 . . . . . . . . . . . . . . . . . . . . . . . . . . . . Prototype ID Bank 4 | . 2 . . . . . 2 . . . . . . . . . . . . . . . . . . . . . . . . Open Door 3 | . . . . . . . . . 1 . . . . . . . . . . . . . . . . . . . . . 2 Branch Access Points 1 | . . . . . . . . . . . 1 . . . . . . . . . . . . . . . . . . . . Fabricator Index 1 | . . . . . . . . . . . 1 . . . . . . . . . . . . . . . . . . . . Unreport Threat 3 | . 1 . . . . . 2 . . . . . . . . . . . . . . . . . . . . . . . . Locate Traps 4 | . 1 . 1 . . . . . . . . . . . . . 1 . 1 . . . . . . . . . . . . Disarm Traps 1 | . . . . . . . 1 . . . . . . . . . . . . . . . . . . . . . . . . Recall Reinforcements 1 | . . . . . . . 1 . . . . . . . . . . . . . . . . . . . . . . . . Hauler Manifests 3 | . 1 . . . . . 1 . . . . . . . . . . . . . . . . . 1 . . . . . . Fabricator Hacks 9 | . . . . . . . . . . . 1 . 3 . 2 . 1 . . . . . . . 2 . . . . . . Load Schematic 4 | . . . . . . . . . . . . . 1 . 1 . 1 . . . . . . . 1 . . . . . . Build 5 | . . . . . . . . . . . 1 . 2 . 1 . . . . . . . . . 1 . . . . . . Repair Station Hacks 1 | . . . . . . . . . . . . . . . . . . . . . . . . . 1 . . . . . . Scan Component 1 | . . . . . . . . . . . . . . . . . . . . . . . . . 1 . . . . . . Recycling Unit Hacks . | . . . . . . . . . . . . . . . . . . . . . . . . . . . . . . . . Scanalyzer 6 | . . . . . . . . . . . . . . . . . 4 . . . . . 2 . . . . . . . . Insert Component 2 | . . . . . . . . . . . . . . . . . 1 . . . . . 1 . . . . . . . . Analyze 4 | . . . . . . . . . . . . . . . . . 3 . . . . . 1 . . . . . . . . Garrison Access Hacks 16 | . . . . . . . 1 . 1 . 1 . 1 . 1 . 1 . 1 . 1 . 1 . 1 . 1 . 1 . 4 Unlock Access 12 | . . . . . . . 1 . 1 . 1 . 1 . 1 . 1 . 1 . 1 . 1 . 1 . 1 . 1 . . Seal Access 4 | . . . . . . . . . . . . . . . . . . . . . . . . . . . . . . . 4 Unauthorized Hacks 12 | . 3 . 1 . . . 7 . . . 1 . . . . . . . . . . . . . . . . . . . . Terminals 12 | . 3 . 1 . . . 7 . . . 1 . . . . . . . . . . . . . . . . . . . . Track 10 | . 3 . 1 . . . 5 . . . 1 . . . . . . . . . . . . . . . . . . . . Botnet 2 | . . . . . . . 2 . . . . . . . . . . . . . . . . . . . . . . . . Fabricators . | . . . . . . . . . . . . . . . . . . . . . . . . . . . . . . . . Repair Stations . | . . . . . . . . . . . . . . . . . . . . . . . . . . . . . . . . Recycling Units . | . . . . . . . . . . . . . . . . . . . . . . . . . . . . . . . . Scanalyzers . | . . . . . . . . . . . . . . . . . . . . . . . . . . . . . . . . Garrison Access . | . . . . . . . . . . . . . . . . . . . . . . . . . . . . . . . . Data Cores Recovered 1 | . . . . . . . . . 1 . . . . . . . . . . . . . . . . . . . . . . Used 1 | . . . . . . . . . 1 . . . . . . . . . . . . . . . . . . . . . . Hacking Detections 44 | . 7 . 2 1 . . 8 . 1 . 5 . 1 . 3 . 3 . 2 . 2 . 1 . 5 . 1 . . . 2 Full Trace Events 4 | . . . . . . . 1 . . . . . . . . . . . 1 . . . . . 1 . . . . . 1 Feedback Events . | . . . . . . . . . . . . . . . . . . . . . . . . . . . . . . . . Feedback Blocked . | . . . . . . . . . . . . . . . . . . . . . . . . . . . . . . . . Robot Schematics Acquired . | . . . . . . . . . . . . . . . . . . . . . . . . . . . . . . . . Robots Built . | . . . . . . . . . . . . . . . . . . . . . . . . . . . . . . . . Matter . | . . . . . . . . . . . . . . . . . . . . . . . . . . . . . . . . Time . | . . . . . . . . . . . . . . . . . . . . . . . . . . . . . . . . Total Robot Build Rating . | . . . . . . . . . . . . . . . . . . . . . . . . . . . . . . . . Part Schematics Acquired 5 | . 2 . . . . . . . . . . . . . 1 . 1 . . . . . 1 . . . . . . . . Parts Built 6 | . . . . . . . . . . . 2 . 2 . 1 . . . . . . . . . 1 . . . . . . Matter 818 | . . . . . . . . . . . 234 . 204 . 168 . . . . . . . . . 212 . . . . . . Time 297 | . . . . . . . . . . . 58 . 102 . 84 . . . . . . . . . 53 . . . . . . Total Part Build Rating 26 | . . . . . . . . . . . 14 . 2 . 4 . . . . . . . . . 6 . . . . . . Parts Repaired . | . . . . . . . . . . . . . . . . . . . . . . . . . . . . . . . . Time . | . . . . . . . . . . . . . . . . . . . . . . . . . . . . . . . . Parts Recycled . | . . . . . . . . . . . . . . . . . . . . . . . . . . . . . . . . Recycled Matter . | . . . . . . . . . . . . . . . . . . . . . . . . . . . . . . . . Retrieved Matter . | . . . . . . . . . . . . . . . . . . . . . . . . . . . . . . . . Retrieved Components . | . . . . . . . . . . . . . . . . . . . . . . . . . . . . . . . . Parts Scanalyzed 2 | . . . . . . . . . . . . . . . . . 1 . . . . . 1 . . . . . . . . Part Schematics Acquired 2 | . . . . . . . . . . . . . . . . . 1 . . . . . 1 . . . . . . . . Parts Damaged . | . . . . . . . . . . . . . . . . . . . . . . . . . . . . . . . . Bothacking | -11 -10 -10 -9 -9 -9 -8 -8 -8 -8 -8 -7 -7 -7 -7 -6 -6 -6 -6 -5 -5 -5 -5 -4 -4 -4 -4 -3 -3 -2 -2 -1 ------------ Run | Scr Mat Min Mat Min Exi Min Mat Gar Sto Gar Fac Gar Fac Gar Fac Gar Fac Gar Fac Gar Fac Gar Fac Gar Fac Gar Res Gar Res Gar Acc Used RIF Installer 12 | . . . . . . . . 1 . 1 . 1 . 1 . 1 . 1 . 1 . 1 . 1 . 1 . 1 . 1 . Command Fork 1 | . . . . . . . . . . . . . . . . . . . . 1 . . . . . . . . . . . Threat Obfuscator 1 | . . . . . . . . . . . . . . . . . . . . . . . . . . . . 1 . . . Signal Jammer 1 | . . . . . . . . . . 1 . . . . . . . . . . . . . . . . . . . . . Zone Cloak 1 | . . . . . . . . . . . . 1 . . . . . . . . . . . . . . . . . . . Robot Detection 1 | . . . . . . . . . . . . . . 1 . . . . . . . . . . . . . . . . . Watcher Feeds 1 | . . . . . . . . . . . . . . . . . . 1 . . . . . . . . . . . . . Structural Interface 1 | . . . . . . . . . . . . . . . . . . . . . . . . . . 1 . . . . . Program Shield 1 | . . . . . . . . . . . . . . . . . . . . . . . . 1 . . . . . . . Autoassimilate 2 | . . . . . . . . . . . . . . . . 1 . . . . . 1 . . . . . . . . . Crosswire 1 | . . . . . . . . . . . . . . . . . . . . . . . . . . . . . . 1 . Robots Hacked 273 | . . . . . . . . . . . . 19 1 15 . 8 4 26 4 16 1 14 . 16 23 9 6 14 3 13 81 Non-combat 14 | . . . . . . . . . . . . . 1 . . . . 1 . . . . . . 4 . . . . . 8 Combat 259 | . . . . . . . . . . . . 19 . 15 . 8 4 25 4 16 1 14 . 16 19 9 6 14 3 13 73 Autoassimilated 85 | . . . . . . . . . . . . . . . . . . 2 2 2 . 3 . 6 9 3 1 4 . 5 48 Robot Hacks Applied 215 | . . . . . . . . . . . . 20 1 21 . 9 5 26 2 15 1 12 . 10 18 8 6 13 5 8 35 parse_system 13 | . . . . . . . . . . . . 1 1 3 . 1 . 2 . 1 . . . . . 2 . . . . 2 find_recycling 1 | . . . . . . . . . . . . . . . . . . . . . . . . . . . . . . . 1 check_alert 1 | . . . . . . . . . . . . . . . . . . . . . . . . . . . . . . . 1 purge_threat 4 | . . . . . . . . . . . . . . . . . . . . . . . . . 4 . . . . . . block_reporting 1 | . . . . . . . . . . . . . . . . . . . . . . . . . . . . . . . 1 map_route 3 | . . . . . . . . . . . . . . . . . . . . . . . . . . . . . . . 3 find_garrison 5 | . . . . . . . . . . . . . . . . . 1 . 1 . . . . . 1 . 1 . 1 . . link_fov 1 | . . . . . . . . . . . . . . . . . . . . . . . . . . . . . . . 1 reboot_propulsion 1 | . . . . . . . . . . . . . . . . . . . . . . . . . . . . . . . 1 tweak_propulsion 1 | . . . . . . . . . . . . . . . . . . . . . . 1 . . . . . . . . . scatter_targeting 4 | . . . . . . . . . . . . . . . . . . 2 . 1 . . . . . . . 1 . . . spike_heat 11 | . . . . . . . . . . . . 5 . 1 . . 2 1 . 1 . . . . . . 1 . . . . overload_power 6 | . . . . . . . . . . . . 2 . 2 . 1 . . . 1 . . . . . . . . . . . amplify_resonance 5 | . . . . . . . . . . . . 2 . 2 . . . . . 1 . . . . . . . . . . . wipe_record 1 | . . . . . . . . . . . . . . . . . . . . . . . . . 1 . . . . . . disable_weapons 3 | . . . . . . . . . . . . . . . . . . 1 . . . . . . . 1 . 1 . . . overwrite_iff 56 | . . . . . . . . . . . . 5 . 7 . 5 1 9 1 5 . 7 . . . 2 . 5 3 3 3 formatsys_high 98 | . . . . . . . . . . . . 5 . 6 . 2 1 11 . 5 1 4 . 10 12 3 4 6 1 5 22 Relay Couplers Released 175 | . . . . . . . . 13 . 13 . 17 3 17 . 18 . 12 . 13 . 13 . 11 1 15 . 14 . 15 . Machine Destruction 172 | . . . . . . . . 13 . 13 . 17 . 17 . 18 . 12 . 13 . 13 . 11 1 15 . 14 . 15 . Programmers 3 | . . . . . . . . . . . . . 3 . . . . . . . . . . . . . . . . . . Attached 89 | . . . . . . . . . . . 2 7 . 9 1 3 3 9 1 3 . 5 . 6 9 3 2 4 1 8 13 Crosswired 12 | . . . . . . . . . . . . . . . . . . . . . . . . . . . . . . 12 . Robots Rewired 5 | . . . . . . . . . . . . . . . . . . 4 1 . . . . . . . . . . . . Allies Hacked . | . . . . . . . . . . . . . . . . . . . . . . . . . . . . . . . . Hacks Repelled . | . . . . . . . . . . . . . . . . . . . . . . . . . . . . . . . . Allies | -11 -10 -10 -9 -9 -9 -8 -8 -8 -8 -8 -7 -7 -7 -7 -6 -6 -6 -6 -5 -5 -5 -5 -4 -4 -4 -4 -3 -3 -2 -2 -1 -------- Run | Scr Mat Min Mat Min Exi Min Mat Gar Sto Gar Fac Gar Fac Gar Fac Gar Fac Gar Fac Gar Fac Gar Fac Gar Fac Gar Res Gar Res Gar Acc Total Allies 265 | . . . . 3 . . . . . . . 10 . 12 . 7 2 26 4 14 1 16 . 16 22 10 6 18 4 16 78 Largest Group 12 | . . . . 3 3 3 2 . . . . 3 3 2 1 3 2 10 10 11 3 4 . 10 11 8 8 7 5 12 11 Highest-Rated Group 792 | . . . . 40 40 40 32 . . . . 96 96 64 32 81 56 314 361 356 87 124 . 363 524 347 462 355 253 792 730 Highest-Rated Ally 147 | . . . . 16 16 16 16 . . . . 32 32 32 32 41 40 41 49 49 29 77 . 58 60 58 64 115 64 147 147 Total Orders 58 | . . . . . . . . . . . . . . 2 . . . 4 4 4 . 5 . 7 6 7 3 2 2 8 4 STAY 31 | . . . . . . . . . . . . . . 1 . . . 2 2 2 . 3 . 4 3 3 2 1 1 5 2 FOLLOW 27 | . . . . . . . . . . . . . . 1 . . . 2 2 2 . 2 . 3 3 4 1 1 1 3 2 Ally Attacks 1343 | . . . . 5 . 18 7 . . . . 10 28 36 2 53 9 77 31 92 21 46 . 55 239 74 29 79 21 89 322 Total Damage 39221 | . . . . 50 . 245 60 . . . . 324 946 617 100 1500 335 2345 753 2474 263 924 . 1535 8023 2807 690 2264 454 2757 9755 Kills 258 | . . . . 3 . 2 . . . . . 1 13 9 . 12 4 16 6 22 2 4 . 10 47 15 6 11 4 19 52 Allies Corrupted 18 | . . . . . . . . . . . . 1 . . . . . . . . . . . . 1 . 3 . . 2 11 Allies Melted 1 | . . . . . . . . . . . . . . . . . . . . . 1 . . . . . . . . . . Intel | -11 -10 -10 -9 -9 -9 -8 -8 -8 -8 -8 -7 -7 -7 -7 -6 -6 -6 -6 -5 -5 -5 -5 -4 -4 -4 -4 -3 -3 -2 -2 -1 ------- Run | Scr Mat Min Mat Min Exi Min Mat Gar Sto Gar Fac Gar Fac Gar Fac Gar Fac Gar Fac Gar Fac Gar Fac Gar Fac Gar Res Gar Res Gar Acc Robot Analysis Total 3 | . 2 . 1 . . . . . . . . . . . . . . . . . . . . . . . . . . . . Derelict Logs Recovered 3 | . . . . 3 . . . . . . . . . . . . . . . . . . . . . . . . . . . Drone Launches . | . . . . . . . . . . . . . . . . . . . . . . . . . . . . . . . . Drone Recoveries . | . . . . . . . . . . . . . . . . . . . . . . . . . . . . . . . . Exploration | -11 -10 -10 -9 -9 -9 -8 -8 -8 -8 -8 -7 -7 -7 -7 -6 -6 -6 -6 -5 -5 -5 -5 -4 -4 -4 -4 -3 -3 -2 -2 -1 ------------- Run | Scr Mat Min Mat Min Exi Min Mat Gar Sto Gar Fac Gar Fac Gar Fac Gar Fac Gar Fac Gar Fac Gar Fac Gar Fac Gar Res Gar Res Gar Acc Turns Passed 42988 | 83 1225 679 984 986 764 1164 2099 1521 331 3682 1246 2132 507 1940 357 1219 603 1649 441 1959 117 1833 142 1400 1597 1723 664 2082 191 2349 5319 Spaces Moved 22146 | 47 605 339 433 542 424 599 861 720 138 1382 859 1193 286 980 242 588 318 1057 275 930 82 895 99 755 917 947 395 879 71 1094 3194 Core 7 | 5 . . . . . . . . . . . . . . . . . . . . . . . . . . . . . . 2 Treads 8108 | 42 605 339 433 542 424 599 861 720 138 1226 . . . . . . . . . . . . . . . . . 504 71 1094 510 Legs . | . . . . . . . . . . . . . . . . . . . . . . . . . . . . . . . . Wheels 14031 | . . . . . . . . . . 156 859 1193 286 980 242 588 318 1057 275 930 82 895 99 755 917 947 395 375 . . 2682 Hover . | . . . . . . . . . . . . . . . . . . . . . . . . . . . . . . . . Flight . | . . . . . . . . . . . . . . . . . . . . . . . . . . . . . . . . Fastest Speed 50 | 50 160 180 180 180 180 180 172 172 200 130 130 130 130 130 140 150 150 120 130 120 130 130 140 140 140 145 150 155 185 185 130 Average Speed 156 | 148 170 180 180 180 180 180 180 186 203 204 131 130 139 135 141 150 150 124 130 120 130 138 140 140 149 149 153 192 190 185 147 Slowest Speed 2350 | 160 180 180 180 180 180 180 200 200 225 230 140 130 140 140 150 150 160 150 130 130 130 190 140 140 220 155 210 250 200 185 2350 Overloaded Moves . | . . . . . . . . . . . . . . . . . . . . . . . . . . . . . . . . Propulsion Burnouts . | . . . . . . . . . . . . . . . . . . . . . . . . . . . . . . . . Robots Hopped . | . . . . . . . . . . . . . . . . . . . . . . . . . . . . . . . . Cave-ins Triggered . | . . . . . . . . . . . . . . . . . . . . . . . . . . . . . . . . Exploration Rate (%) 54 | 4 95 79 33 99 90 98 70 73 23 85 18 85 8 81 6 82 7 81 9 87 3 76 3 79 25 95 9 93 4 94 64 Regions Visited 31 Branch Regions 5 Pre-discovered Areas 1 | . . . . 1 . . . . . . . . . . . . . . . . . . . . . . . . . . . Known Exits Taken 12 | . . . . . . . 1 . 1 . 1 . 1 . 1 . 1 . 1 . 1 . 1 . 1 . 1 . 1 . . Unknown Exits Taken 7 | 1 1 1 1 1 1 1 . . . . . . . . . . . . . . . . . . . . . . . . . Scrap Searched 5 | . . 2 . 1 . 2 . . . . . . . . . . . . . . . . . . . . . . . . . Spaces Dug 38 | . . . . . . . 1 . 7 6 . 2 . . . 8 1 1 . . . . . 4 . . . . . . 8 Terrain Destroyed 484 | . . . . 9 . 11 18 32 22 39 . 38 3 . . 11 1 4 . 1 1 79 . 9 3 2 . 1 . 2 198 Melee 19 | . . . . . . . 1 . 1 6 . 2 . . . . 1 . . . . . . . . . . . . . 8 Projectile 73 | . . . . . . . . . 6 . . 5 3 . . 11 . 4 . 1 1 19 . 9 3 2 . 1 . 2 6 AOE 392 | . . . . 9 . 11 17 32 15 33 . 31 . . . . . . . . . 60 . . . . . . . . 184 Terrain Rammed . | . . . . . . . . . . . . . . . . . . . . . . . . . . . . . . . . Walls Destroyed . | . . . . . . . . . . . . . . . . . . . . . . . . . . . . . . . . Machines Disabled . | . . . . . . . . . . . . . . . . . . . . . . . . . . . . . . . . Actions | -11 -10 -10 -9 -9 -9 -8 -8 -8 -8 -8 -7 -7 -7 -7 -6 -6 -6 -6 -5 -5 -5 -5 -4 -4 -4 -4 -3 -3 -2 -2 -1 --------- Run | Scr Mat Min Mat Min Exi Min Mat Gar Sto Gar Fac Gar Fac Gar Fac Gar Fac Gar Fac Gar Fac Gar Fac Gar Fac Gar Res Gar Res Gar Acc Total 28748 | 58 724 372 557 551 425 665 1196 832 175 2068 941 1561 376 1517 255 873 438 1316 347 1721 89 1298 103 1064 1115 1218 450 1229 122 1403 3689 Wait 3599 | . 30 . 39 5 2 51 149 5 5 526 34 64 55 348 . 136 98 77 45 612 2 128 . 188 120 153 9 223 39 237 219 Move 22124 | 46 604 338 432 541 423 598 861 719 138 1381 858 1192 285 979 242 587 318 1056 275 929 82 894 99 754 917 946 395 878 71 1092 3194 Hop . | . . . . . . . . . . . . . . . . . . . . . . . . . . . . . . . . Pick Up 255 | 5 21 4 12 . . . 12 15 2 13 9 19 3 13 5 12 1 8 . 16 1 11 2 6 7 13 6 10 . 9 20 Fast Attach 94 | 6 1 . 2 . . 1 9 2 2 3 3 4 3 2 1 1 1 5 1 . . 4 . . 4 1 5 4 1 2 26 Attach 170 | . 3 4 3 . . . 7 5 . 6 3 16 . 12 2 2 3 11 2 7 . 10 . 6 9 5 3 7 1 8 35 Detach 39 | . . . . . . . 2 3 . 2 2 3 . 1 1 1 1 5 1 2 . 6 . . . 1 2 2 . 1 3 Swap 163 | . 11 . 5 3 . 1 14 5 8 20 3 27 4 8 2 3 4 3 1 1 . 13 . 2 2 2 6 1 . . 14 Drop 161 | 1 10 . 16 1 . 2 15 6 8 12 9 9 6 3 2 4 4 10 1 3 . 6 2 . 2 6 11 6 1 2 3 Fire 1408 | . 44 26 47 1 . 9 122 54 10 72 20 149 18 80 . 61 7 91 16 61 4 143 . 37 49 43 13 53 9 31 138 Melee 100 | . . . . . . . 1 . 1 24 . 27 . 3 . . 1 . . . . 25 . . . . . . . . 18 Ram 1 | . . . . . . . . . . . . . 1 . . . . . . . . . . . . . . . . . . Kick . | . . . . . . . . . . . . . . . . . . . . . . . . . . . . . . . . Crush 9 | . . . 1 . . 3 4 . 1 . . . . . . . . . . . . . . . . . . . . . . Escape Stasis 562 | . . . . . . . . 18 . 8 . 48 . 64 . 64 . 24 . 87 . 56 . 67 . 48 . 42 . 20 16 Rewire 63 | . . . . . . . . . . 1 . 3 1 4 . 2 . 26 5 3 . 2 . 4 5 . . 3 . 1 3 Trap . | . . . . . . . . . . . . . . . . . . . . . . . . . . . . . . . . Miscellaneous . | . . . . . . . . . . . . . . . . . . . . . . . . . . . . . . . . Route ------- -11/Scrapyard -10/Materials (discovered 5 exits: *Mat x3 / [*Min x2]) -10/Mines -9/Materials -9/Mines (discovered 3 exits: *Mat x2 / *Exi) -9/Exiles -8/Mines (discovered 2 exits: *Mat x2) -8/Materials (discovered 5 exits: *Fac x2 / *Sto x2 / Gar) -8/Garrison (discovered 3 exits: *Sto x3) -8/Storage -8/Garrison (discovered 3 exits: *Fac x3) -7/Factory (discovered 3 exits: Low x2 / Gar) -7/Garrison (discovered 3 exits: *Fac x3) -7/Factory -7/Garrison (discovered 3 exits: *Fac x3) -6/Factory -6/Garrison (discovered 3 exits: *Fac x3) -6/Factory -6/Garrison (discovered 3 exits: *Fac x3) -5/Factory -5/Garrison (discovered 3 exits: *Fac x3) -5/Factory -5/Garrison (discovered 3 exits: *Fac x3) -4/Factory -4/Garrison (discovered 3 exits: *Fac x3) -4/Factory -4/Garrison (discovered 3 exits: *Res x3) -3/Research (discovered 2 exits: *Res / Gar) -3/Garrison (discovered 3 exits: *Res x3) -2/Research -2/Garrison (discovered 3 exits: *Acc x3) -1/Access (discovered 1 exit: *Com) History --------- Turn | Location | Event 17 | -11/Scrapyard | Discovered new exit (range 15) 84 | -11/Scrapyard | Entered Materials 315 | -10/Materials | Build established: Mutant 341 | -10/Materials | Discovered new exit (range 8) 539 | -10/Materials | Discovered new exit (range 15) 651 | -10/Materials | Discovered new exit (range 11) 687 | -10/Materials | Discovered new exit (range 14) 1010 | -10/Materials | Build established: Hauler-Mutant 1139 | -10/Materials | Discovered new exit (range 11) 1309 | -10/Materials | Entered Mines 1314 | -10/Mines | Met a Derelict bent on vengeance 1476 | -10/Mines | Assembled infested the area 1481 | -10/Mines | Assisted by a Guerilla fighting off Assembled 1901 | -10/Mines | Core integrity fell below 50% 1929 | -10/Mines | Lost 3 parts (1p1n1w) 1930 | -10/Mines | Discovered new exit (range 10) 1988 | -10/Mines | Entered Materials 1988 | -9/Materials | Evolved 2 slots: Utility x2 2866 | -9/Materials | Discovered new exit (range 12) 2972 | -9/Materials | Entered Mines 2976 | -9/Mines | Assisted by bots powering up and referring to "LRC-V3" 3057 | -9/Mines | Discovered new exit (range 5) 3431 | -9/Mines | Joined a pair of Derelicts in attacking an 0b10 outpost 3618 | -9/Mines | Learned location of Zion (-6) 3623 | -9/Mines | Learned location of 1 exit from Materials 3722 | -9/Mines | Learned Materials stockpile data 3802 | -9/Mines | Discovered new exit (range 14) 3944 | -9/Mines | Deemed a non-threat by the Exiles lab entrance 3946 | -9/Mines | Discovered new exit (range 5) 3958 | -9/Mines | Entered Exiles 3958 | -9/Exiles | Found Exiles lab abandoned 3958 | -9/Exiles | Accompanied by 3 allies 4702 | -9/Exiles | Discovered new exit (range 10) 4722 | -9/Exiles | Entered Mines 4722 | -8/Mines | Accompanied by 3 allies 4825 | -8/Mines | Discovered new exit (range 7) 5310 | -8/Mines | Discovered new exit (range 8) 5886 | -8/Mines | Entered Materials 5886 | -8/Materials | Accompanied by 2 allies 5886 | -8/Materials | Evolved 2 slots: Utility x2 5887 | -8/Materials | Identified exit to Storage 6413 | -8/Materials | Discovered exit to Storage (range 14) 6493 | -8/Materials | Lost 5 parts (1n3u1w) 6615 | -8/Materials | Discovered new exit (range 7) 6994 | -8/Materials | Discovered new exit (range 16) 7715 | -8/Materials | Garrison activated, responded to threat 7982 | -8/Materials | Identified exit to Garrison 7985 | -8/Materials | Entered Garrison 8020 | -8/Garrison | Triggered checkpoint 8072 | -8/Garrison | Garrison Relay disabled 8180 | -8/Garrison | Triggered checkpoint 8344 | -8/Garrison | Discovered exit to Storage (range 12) 8375 | -8/Garrison | Installed Relay Interface Framework 8664 | -8/Garrison | Triggered checkpoint 8708 | -8/Garrison | Garrison Relay disabled 8829 | -8/Garrison | Build established: Bothacker-Mutant 8992 | -8/Garrison | Triggered checkpoint 9149 | -8/Garrison | Discovered exit to Storage (range 10) 9298 | -8/Garrison | Triggered checkpoint 9384 | -8/Garrison | Triggered checkpoint 9420 | -8/Garrison | Garrison Relay disabled 9476 | -8/Garrison | Discovered exit to Storage (range 12) 9506 | -8/Garrison | Entered Storage 9811 | -8/Storage | Core integrity fell below 50% 9837 | -8/Storage | Identified exit to Garrison 9837 | -8/Storage | Entered Garrison 10004 | -8/Garrison | Lost 3 parts (1n1u1w) 10204 | -8/Garrison | Triggered checkpoint 10310 | -8/Garrison | Discovered new exit (range 10) 10354 | -8/Garrison | Expanded RIF knowledge: Signal Jamming 10459 | -8/Garrison | Triggered checkpoint 11282 | -8/Garrison | Triggered checkpoint 11367 | -8/Garrison | Garrison Relay disabled 11448 | -8/Garrison | Triggered checkpoint 11486 | -8/Garrison | Destroyed 7 combat bots 11570 | -8/Garrison | Triggered checkpoint 11623 | -8/Garrison | Garrison Relay disabled 11746 | -8/Garrison | Spotted B-75 Beast 12010 | -8/Garrison | Discovered new exit (range 15) 12304 | -8/Garrison | Triggered checkpoint 12418 | -8/Garrison | Discovered new exit (range 13) 12498 | -8/Garrison | Triggered checkpoint 12504 | -8/Garrison | Core integrity fell below 20% 12669 | -8/Garrison | Garrison Relay disabled 13519 | -8/Garrison | Entered Factory 13519 | -7/Factory | Evolved 2 slots: Utility x2 13662 | -7/Factory | Fabricated Centrium Wheel? 14027 | -7/Factory | Identified exit to Lower Caves 14756 | -7/Factory | Identified exit to Garrison 14765 | -7/Factory | Entered Garrison 14794 | -7/Garrison | Triggered checkpoint 14890 | -7/Garrison | Triggered checkpoint 14961 | -7/Garrison | Spotted B-75 Beast 14961 | -7/Garrison | Spotted B-75 Beast 15040 | -7/Garrison | Triggered checkpoint 15058 | -7/Garrison | Triggered checkpoint 15103 | -7/Garrison | Lost 5 parts (2p1n1u1w) 15196 | -7/Garrison | Triggered checkpoint 15351 | -7/Garrison | Discovered new exit (range 15) 15379 | -7/Garrison | Expanded RIF knowledge: Zone Cloak 15410 | -7/Garrison | Triggered checkpoint 15469 | -7/Garrison | Lost 5 parts (1n1u3w) 15472 | -7/Garrison | Garrison Relay disabled 15758 | -7/Garrison | Discovered new exit (range 9) 15772 | -7/Garrison | Triggered checkpoint 15791 | -7/Garrison | Garrison Relay disabled 15880 | -7/Garrison | Triggered checkpoint 15993 | -7/Garrison | Garrison Relay disabled 16038 | -7/Garrison | Triggered checkpoint 16100 | -7/Garrison | Triggered checkpoint 16107 | -7/Garrison | Core integrity fell below 50% 16136 | -7/Garrison | Triggered checkpoint 16391 | -7/Garrison | Discovered new exit (range 15) 16672 | -7/Garrison | Garrison Relay disabled 16897 | -7/Garrison | Entered Factory 16897 | -7/Factory | Accompanied by 3 allies 17193 | -7/Factory | Fabricated Hcp. Storage Unit (x1) 17257 | -7/Factory | Fabricated Hcp. Storage Unit (x1) 17272 | -7/Factory | Garrison activated, responded to threat 17273 | -7/Factory | P-60 Hacker assimilated allied Guardian 4d 17297 | -7/Factory | First assault squad dispatched 17333 | -7/Factory | Identified exit to Garrison 17404 | -7/Factory | Entered Garrison 17411 | -7/Garrison | Expanded RIF knowledge: Robot Detection 17526 | -7/Garrison | Triggered checkpoint 17578 | -7/Garrison | Garrison Relay disabled 17700 | -7/Garrison | Build established: Botlord-Mutant 17994 | -7/Garrison | Triggered checkpoint 18011 | -7/Garrison | Triggered checkpoint 18274 | -7/Garrison | Triggered checkpoint 18448 | -7/Garrison | Triggered checkpoint 18502 | -7/Garrison | Garrison Relay disabled 18550 | -7/Garrison | Discovered new exit (range 12) 18934 | -7/Garrison | Discovered new exit (range 11) 18970 | -7/Garrison | Triggered checkpoint 19025 | -7/Garrison | Garrison Relay disabled 19197 | -7/Garrison | Discovered new exit (range 14) 19224 | -7/Garrison | Triggered checkpoint 19241 | -7/Garrison | Garrison Relay disabled 19344 | -7/Garrison | Entered Factory 19344 | -6/Factory | Accompanied by 1 ally 19344 | -6/Factory | Evolved 2 slots: Utility x2 19586 | -6/Factory | Fabricated Remote Datajack? 19701 | -6/Factory | Identified exit to Garrison 19701 | -6/Factory | Entered Garrison 19910 | -6/Garrison | Triggered checkpoint 19970 | -6/Garrison | Garrison Relay disabled 20038 | -6/Garrison | Triggered checkpoint 20104 | -6/Garrison | Triggered checkpoint 20230 | -6/Garrison | Triggered checkpoint 20244 | -6/Garrison | Garrison Relay disabled 20289 | -6/Garrison | Discovered new exit (range 12) 20470 | -6/Garrison | Triggered checkpoint 20515 | -6/Garrison | Garrison Relay disabled 20571 | -6/Garrison | Discovered new exit (range 12) 20727 | -6/Garrison | Triggered checkpoint 20806 | -6/Garrison | Triggered checkpoint 20835 | -6/Garrison | Garrison Relay disabled 20885 | -6/Garrison | Discovered new exit (range 12) 20909 | -6/Garrison | Expanded RIF knowledge: Autoassimilate 20920 | -6/Garrison | Entered Factory 20920 | -6/Factory | Accompanied by 1 ally 21523 | -6/Factory | Identified exit to Garrison 21523 | -6/Factory | Entered Garrison 21531 | -6/Garrison | Expanded RIF knowledge: Patrol Navigation 21722 | -6/Garrison | Triggered checkpoint 21805 | -6/Garrison | Garrison Relay disabled 21990 | -6/Garrison | Triggered checkpoint 22009 | -6/Garrison | Triggered checkpoint 22026 | -6/Garrison | Triggered checkpoint 22120 | -6/Garrison | Discovered new exit (range 9) 22154 | -6/Garrison | Triggered checkpoint 22172 | -6/Garrison | Garrison Relay disabled 22462 | -6/Garrison | Triggered checkpoint 22544 | -6/Garrison | Discovered new exit (range 10) 22592 | -6/Garrison | Triggered checkpoint 22792 | -6/Garrison | Discovered new exit (range 12) 22854 | -6/Garrison | Triggered checkpoint 22928 | -6/Garrison | Phase Generator disabled 22988 | -6/Garrison | Garrison Relay disabled 23172 | -6/Garrison | Entered Factory 23172 | -5/Factory | Accompanied by 7 allies 23172 | -5/Factory | Evolved 2 slots: Utility x2 23602 | -5/Factory | Identified exit to Garrison 23613 | -5/Factory | Entered Garrison 23613 | -5/Garrison | Accompanied by 9 allies 23882 | -5/Garrison | Triggered checkpoint 23882 | -5/Garrison | Triggered checkpoint 24133 | -5/Garrison | Triggered checkpoint 24178 | -5/Garrison | Discovered new exit (range 10) 24220 | -5/Garrison | Expanded RIF knowledge: Command Fork 24354 | -5/Garrison | Triggered checkpoint 24433 | -5/Garrison | Garrison Relay disabled 24498 | -5/Garrison | Discovered new exit (range 15) 24638 | -5/Garrison | Triggered checkpoint 25056 | -5/Garrison | Triggered checkpoint 25070 | -5/Garrison | Garrison Relay disabled 25404 | -5/Garrison | Discovered new exit (range 9) 25480 | -5/Garrison | Triggered checkpoint 25521 | -5/Garrison | Garrison Relay disabled 25572 | -5/Garrison | Entered Factory 25572 | -5/Factory | Accompanied by 2 allies 25689 | -5/Factory | Identified exit to Garrison 25689 | -5/Factory | Entered Garrison 25704 | -5/Garrison | Triggered checkpoint 25893 | -5/Garrison | Triggered checkpoint 25919 | -5/Garrison | Garrison Relay disabled 25979 | -5/Garrison | Spotted B-75 Beast 26425 | -5/Garrison | Triggered checkpoint 26427 | -5/Garrison | Triggered checkpoint 26578 | -5/Garrison | Lost 3 parts (2p1n) 26596 | -5/Garrison | Destroyed B-75 Beast 26925 | -5/Garrison | Discovered new exit (range 10) 27028 | -5/Garrison | Triggered checkpoint 27075 | -5/Garrison | Garrison Relay disabled 27117 | -5/Garrison | Discovered new exit (range 10) 27190 | -5/Garrison | Triggered checkpoint 27197 | -5/Garrison | P-70 Sage assimilated allied Soldier 6h 27336 | -5/Garrison | Discovered new exit (range 14) 27362 | -5/Garrison | Expanded RIF knowledge: Autoassimilate 27396 | -5/Garrison | Triggered checkpoint 27432 | -5/Garrison | Garrison Relay disabled 27522 | -5/Garrison | Entered Factory 27522 | -4/Factory | Evolved 2 slots: Utility x2 27664 | -4/Factory | Identified exit to Garrison 27664 | -4/Factory | Entered Garrison 27710 | -4/Garrison | Triggered checkpoint 27751 | -4/Garrison | Garrison Relay disabled 28234 | -4/Garrison | Triggered checkpoint 28244 | -4/Garrison | Triggered checkpoint 28244 | -4/Garrison | Triggered checkpoint 28325 | -4/Garrison | Discovered new exit (range 15) 28465 | -4/Garrison | Discovered new exit (range 9) 28483 | -4/Garrison | Expanded RIF knowledge: Program Shield 28588 | -4/Garrison | Triggered checkpoint 28667 | -4/Garrison | Garrison Relay disabled 28688 | -4/Garrison | Triggered checkpoint 28834 | -4/Garrison | Discovered new exit (range 4) 28856 | -4/Garrison | Triggered checkpoint 28880 | -4/Garrison | Garrison Relay disabled 29064 | -4/Garrison | Entered Factory 29064 | -4/Factory | Accompanied by 10 allies 29314 | -4/Factory | First assault squad dispatched 30118 | -4/Factory | Spotted B-86 Titan 30126 | -4/Factory | Allies destroyed B-86 Titan 30148 | -4/Factory | Spotted B-86 Titan 30159 | -4/Factory | Allies destroyed B-86 Titan 30561 | -4/Factory | Local fabrication network quarantined 30599 | -4/Factory | Fabricated Imp. Remote Datajack (x1) 30638 | -4/Factory | Identified exit to Garrison 30661 | -4/Factory | Entered Garrison 30661 | -4/Garrison | Accompanied by 7 allies 30690 | -4/Garrison | Triggered checkpoint 30931 | -4/Garrison | Garrison Relay disabled 31158 | -4/Garrison | Spotted B-86 Titan 31170 | -4/Garrison | Triggered checkpoint 31182 | -4/Garrison | Triggered checkpoint 31194 | -4/Garrison | Allies destroyed B-86 Titan 31202 | -4/Garrison | Triggered checkpoint 31220 | -4/Garrison | Triggered checkpoint 31325 | -4/Garrison | Discovered new exit (range 7) 31386 | -4/Garrison | Triggered checkpoint 31486 | -4/Garrison | Garrison Relay disabled 31650 | -4/Garrison | Discovered new exit (range 9) 31765 | -4/Garrison | Discovered new exit (range 10) 31786 | -4/Garrison | Expanded RIF knowledge: Structural Interface 31868 | -4/Garrison | Garrison Relay disabled 32173 | -4/Garrison | Garrison Relay disabled 32384 | -4/Garrison | Entered Research 32384 | -3/Research | Accompanied by 5 allies 32384 | -3/Research | Evolved 2 slots: Utility x2 32426 | -3/Research | Discovered new exit (range 5) 32458 | -3/Research | Found Fusion Bomb Launcher 32837 | -3/Research | Lost 4 parts (1n2u1w) 32884 | -3/Research | First assault squad dispatched 33048 | -3/Research | Identified exit to Garrison 33048 | -3/Research | Entered Garrison 33516 | -3/Garrison | Triggered checkpoint 33538 | -3/Garrison | Garrison Relay disabled 33711 | -3/Garrison | Spotted B-86 Titan 33719 | -3/Garrison | Assimilated Titan 8a with formatsys_high 33720 | -3/Garrison | Triggered checkpoint 33724 | -3/Garrison | Triggered checkpoint 33726 | -3/Garrison | Triggered checkpoint 33761 | -3/Garrison | Triggered checkpoint 33810 | -3/Garrison | Found Hvy. Reflective Plating 33886 | -3/Garrison | Discovered new exit (range 9) 34145 | -3/Garrison | Discovered new exit (range 9) 34306 | -3/Garrison | Discovered new exit (range 11) 34337 | -3/Garrison | Expanded RIF knowledge: Threat Obfuscation 34666 | -3/Garrison | Garrison Relay disabled 34930 | -3/Garrison | Triggered checkpoint 34975 | -3/Garrison | Garrison Relay disabled 35130 | -3/Garrison | Entered Research 35130 | -2/Research | Accompanied by 3 allies 35130 | -2/Research | Evolved 2 slots: Utility x2 35242 | -2/Research | Garrison activated, responded to threat 35310 | -2/Research | Identified exit to Garrison 35321 | -2/Research | Entered Garrison 35321 | -2/Garrison | Accompanied by 4 allies 35338 | -2/Garrison | Triggered checkpoint 35436 | -2/Garrison | Triggered checkpoint 35515 | -2/Garrison | Garrison Relay disabled 35883 | -2/Garrison | Spotted B-90 Cyclops 35935 | -2/Garrison | Assimilated Cyclops 9a with formatsys_high 36019 | -2/Garrison | Triggered checkpoint 36032 | -2/Garrison | Triggered checkpoint 36104 | -2/Garrison | Triggered checkpoint 36158 | -2/Garrison | Discovered new exit (range 9) 36184 | -2/Garrison | Expanded RIF knowledge: Crosswire 36290 | -2/Garrison | Triggered checkpoint 36319 | -2/Garrison | Garrison Relay disabled 36504 | -2/Garrison | Discovered new exit (range 13) 36672 | -2/Garrison | Triggered checkpoint 36908 | -2/Garrison | Discovered new exit (range 10) 37083 | -2/Garrison | Triggered checkpoint 37287 | -2/Garrison | Garrison Relay disabled 37666 | -2/Garrison | Identified exit to Access 37670 | -2/Garrison | Entered Access 37670 | -1/Access | Accompanied by 11 allies 37670 | -1/Access | Evolved 2 slots: Utility x2 38060 | -1/Access | Spotted B-99 Colossus 38190 | -1/Access | Lost 3 parts (1n1u1w) 38582 | -1/Access | System corruption reached 10% 38615 | -1/Access | Lost 5 parts (2p1u2w) 38841 | -1/Access | Garrison activated, responded to threat 38900 | -1/Access | Lost 3 parts (1p1n1u) 39962 | -1/Access | Spotted B-99 Colossus 40406 | -1/Access | Found Prototype Processor 40406 | -1/Access | Identified Exp. Targeting Computer 41351 | -1/Access | Spotted B-99 Colossus 41551 | -1/Access | Lost 3 parts (1n2w) 41955 | -1/Access | Found Fusion Bomb Launcher 41964 | -1/Access | Found Unknown Protection 41964 | -1/Access | Identified Hvy. Insulated Plating 42920 | -1/Access | First assault squad dispatched 42939 | -1/Access | Spotted B-99 Colossus 42939 | -1/Access | Spotted B-99 Colossus 42948 | -1/Access | Core integrity fell below 50% 42962 | -1/Access | Discovered new exit (range 4) 42963 | -1/Access | Core integrity fell below 20% 42988 | -1/Access | Identified exit to Command 42989 | -1/Access | Destroyed by H-88 Terminator with KE Penetrator Last Messages --------------- 42976_ Enh. Nova Cannon destroyed. 42976_ Slug penetrates Sealed Heavy Doors. 42976_ Slug penetrates Wall. 42978_ System corrupted: Matter fused (-8). 42979_ Hcp. Storage Unit destroyed. 42979_ Slug penetrates Sealed Heavy Doors. 42979_ Slug penetrates Wall. 42981_ Slug penetrates Sealed Heavy Doors. 42982_ Slug penetrates Wall. 42984_ Slug penetrates Sealed Heavy Doors. 42985_ Hcp. Storage Unit destroyed. 42985_ Slug penetrates Sealed Heavy Doors. 42985_ Slug penetrates Wall. 42985_ Relay Coupler [C] destroyed. 42985_ Slug penetrates Wall. 42987_ Dropped Biometal Heavy Treads. 42988_ Dropped Hcp. Storage Unit. 42988_ Adv. Visual Processing Unit destroyed. 42988_ EXIT=IDENTIFIED: COMMAND 42989_ Slug penetrates Wall. Map ----- +----------------------------------------------------+ | ??????????????????# #######?????????# # | | ??????????????????# #???????????????# # | | ??????????????????# #???????????????# # | | ??????????????????# #???????????????# # | | ??????????????????# #???????????????# # | | ??????????????????# #???????????????# # | | ??????????????????# #???????????????# + | | ????????????????###+######??????????# # | | ????????????????# #??????????# # | | ????????????????# #??????????# ########## | | ????????????????# #######+### #######?? | | ????????????????# # | | ????????????????# # *%= | | ##########??????# # "%" ] = | | #??????# " "####### #???????? | | #??????# # #?????#?????????????? | | " #??????# ! # #???????????????????? | | "" #??????########## #??#????????????????? | | "" #???????#########" "##"######???????????? | | "" #???????# #???????????? | | "" #???????# h b #???????????? | | "" #???????# hhh #???????????? | | "" #???????# #####h""##### #???????????? | | " #???????###?????#g"???????###???????????? | | #?????????????###|""####????????????????? | | #?????????????#/@]!] ##T###?????????????? | | #"####################?# >||! " #?????????????? | | #?# " #?????????????? | | "########### #?????????????? | | ###############T## #???###????# #?????????????? | | ##???????####### ##### ###### #?????????????? | | ##?????? #??# #?????????????? | | ######## #??# #?????????????? | | + + !#??# #?????????????? | | ###### # #??########T #########?????????????? | | !###??# # #?????????####?????????????????????? | | # #??# + !#??????????????????????????????????? | | # #??# # #???????#########??????????????????? | | ###### ##?###???????# = [ #??????????????????? | | ####?# ############# #??????????????????? | | !?# + #??????????????????? | | = ?# ####### " #??????????????????? | | ## ####### # #??????????????????? | | ## !!! # # #########??????????????????? | | #+#### !!! # != #g#??????????????????????????? | | ### !!! # #g#??????????????????????????? | | + #g#?????????????????#????????? | | ### # #g#?????????????????# * | | ???#?# ####### #?????????????????# | | ??########### #?????????????????# | +----------------------------------------------------+ Best States ------------- Heat Dissipation 64 Energy Generation 25 Energy Capacity 350 Matter Stores 300 Matter Capacity 300 Sight Range 20 Robot Scan Range 20 Terrain Scan Range 20 Terrain Scan Density 10 Armor Coverage 1050 Resistance: TH 25 Resistance: EM 30 Core Shielding 30 Evasion (%) 40 Targeting Accuracy 12 Recoil Reduction 4 Energy Filtering 50 Offensive Hacking 10 Relay Coupler Types 303 Relay Coupler Value 9 Item Schematics ----------------- Hcp. Storage Unit | -10/Materials | Hacked Datajack | -10/Materials | Hacked Remote Datajack | -6/Factory | Hacked Centrium Wheel | -6/Factory | Scanalyzed Imp. Remote Datajack | -4/Factory | Scanalyzed Robot Schematics ------------------ None Fabricated ------------ Centrium Wheel | x2 | -7/Factory | Preloaded Hcp. Storage Unit | x1 | -7/Factory Hcp. Storage Unit | x1 | -7/Factory Remote Datajack | x1 | -6/Factory Imp. Remote Datajack | x1 | -4/Factory Alien Tech Used ----------------- None Achievements -------------- Maybe Next Time I'll Detach My Launcher Challenges ------------ None Game ------ Seed RelayInertialUnit Manual? 0 Play Time 06:09:49 Cumulative 87.1 hours Start 2020.10.09 @ 22:22:29 End 2020.10.11 @ 20:19:03 Sessions 11 Manual Loads 0 Difficulty Rogue Special Mode None Game No. 64 Rogue 64 Adventurer 0 Explorer 0 Win Type - Total 0 Types 0/0/0/0/0/0/0/0/0 Lore% 50 Gallery% 58 Achievement% 45 Wizard Run 0 Options --------- ASCII 0 Keyboard 1 Movement Numpad Keybinds 0 Fullscreen 2 Font 18/Smallcaps Map View 76x50 Tactical HUD 1 Map Filters NONE Filters NONE Steam 1 RUN: 042c42a5-e292-4c44-95e8-f1758d8aa72f